[Event "Titled Tuesday Blitz April 4 Early 2023"]
[White "Kozin, Yuri"]
[Black "Vemparala, Nikash"]
[WhiteFideId "4129920"]
[BlackFideId "30960967"]
[WhiteElo "2551"]
[BlackElo "2023"]
[Result "1-0"]
[Round "10"]
[TimeControl "180+2"]
[Date "2023.04.04"]
[WhiteClock "0:01:35"]
[BlackClock "0:01:50"]

1. e4 {[%clk 0:02:58]}  e5 {[%clk 0:02:57]} 2. Nf3 {[%clk 0:02:57]}  Nc6 {[%clk 0:02:57]} 3. Bb5 {[%clk 0:02:57]}  Nf6 {[%clk 0:02:55]} 4. d3 {[%clk 0:02:57]}  Bc5 {[%clk 0:02:53]} 5. O-O {[%clk 0:02:56]}  Nd4 {[%clk 0:02:52]} 6. Ba4 {[%clk 0:02:56]}  O-O {[%clk 0:02:48]} 7. Nxe5 {[%clk 0:02:49]}  d6 {[%clk 0:02:42]} 8. Nf3 {[%clk 0:02:41]}  Bg4 {[%clk 0:02:42]} 9. Nbd2 {[%clk 0:02:42]}  Qc8 {[%clk 0:02:33]} 10. c3 {[%clk 0:02:40]}  Nxf3+ {[%clk 0:02:32]} 11. Nxf3 {[%clk 0:02:40]}  Bb6 {[%clk 0:02:28]} 12. Be3 {[%clk 0:02:36]}  h5 {[%clk 0:02:23]} 13. Bb3 {[%clk 0:02:16]}  h4 {[%clk 0:02:21]} 14. Bxb6 {[%clk 0:02:04]}  axb6 {[%clk 0:02:19]} 15. h3 {[%clk 0:02:03]}  Bh5 {[%clk 0:02:10]} 16. Qe2 {[%clk 0:02:02]}  Nh7 {[%clk 0:02:06]} 17. Qe3 {[%clk 0:02:01]}  Kh8 {[%clk 0:01:49]} 18. Nxh4 {[%clk 0:01:50]}  f5 {[%clk 0:01:48]} 19. Nxf5 {[%clk 0:01:48]}  Rxf5 {[%clk 0:01:49]} 20. exf5 {[%clk 0:01:49]}  Qxf5 {[%clk 0:01:50]} 21. g4 {[%clk 0:01:35]} 1-0


[Site "https://www.chess.com"]

[Event "Titled Tuesday Blitz April 4 Early 2023"]
[White "Shuvalov, Evgenij"]
[Black "Jimenez Jimenez, Leandro"]
[WhiteFideId "4187237"]
[BlackFideId "6415253"]
[WhiteElo "2080"]
[BlackElo "2263"]
[Result "0-1"]
[Round "10"]
[TimeControl "180+2"]
[Date "2023.04.04"]
[WhiteClock "0:01:42"]
[BlackClock "0:01:32"]

1. d4 {[%clk 0:03:00]}  d5 {[%clk 0:02:58]} 2. c4 {[%clk 0:03:01]}  e6 {[%clk 0:02:58]} 3. Nc3 {[%clk 0:03:00]}  Nf6 {[%clk 0:02:59]} 4. cxd5 {[%clk 0:03:00]}  exd5 {[%clk 0:02:59]} 5. Bg5 {[%clk 0:03:01]}  Be7 {[%clk 0:02:58]} 6. e3 {[%clk 0:03:01]}  O-O {[%clk 0:02:58]} 7. Bd3 {[%clk 0:03:01]}  c6 {[%clk 0:02:59]} 8. Nge2 {[%clk 0:03:00]}  Re8 {[%clk 0:02:59]} 9. O-O {[%clk 0:03:00]}  Ne4 {[%clk 0:02:59]} 10. Bf4 {[%clk 0:02:58]}  Bf8 {[%clk 0:02:53]} 11. Qc2 {[%clk 0:02:57]}  Bf5 {[%clk 0:02:37]} 12. f3 {[%clk 0:02:49]}  Nxc3 {[%clk 0:02:37]} 13. Bxf5 {[%clk 0:02:46]}  Nxe2+ {[%clk 0:02:37]} 14. Qxe2 {[%clk 0:02:47]}  Nd7 {[%clk 0:02:37]} 15. Qc2 {[%clk 0:02:43]}  g6 {[%clk 0:02:37]} 16. Bd3 {[%clk 0:02:41]}  Nf6 {[%clk 0:02:32]} 17. Rae1 {[%clk 0:02:37]}  Nh5 {[%clk 0:02:31]} 18. Be5 {[%clk 0:02:34]}  f6 {[%clk 0:02:11]} 19. Bxg6 {[%clk 0:02:26]}  hxg6 {[%clk 0:02:12]} 20. Qxg6+ {[%clk 0:02:26]}  Bg7 {[%clk 0:02:09]} 21. Bg3 {[%clk 0:02:06]}  Nxg3 {[%clk 0:02:07]} 22. Qxg3 {[%clk 0:02:07]}  f5 {[%clk 0:02:05]} 23. Qf4 {[%clk 0:02:03]}  Qf6 {[%clk 0:02:02]} 24. Kf2 {[%clk 0:01:56]}  Bh6 {[%clk 0:01:50]} 25. Qc7 {[%clk 0:01:55]}  Re7 {[%clk 0:01:49]} 26. Qa5 {[%clk 0:01:54]}  Rae8 {[%clk 0:01:48]} 27. Qd2 {[%clk 0:01:54]}  Qh4+ {[%clk 0:01:43]} 28. Kg1 {[%clk 0:01:49]}  Bxe3+ {[%clk 0:01:35]} 29. Rxe3 {[%clk 0:01:49]}  Rxe3 {[%clk 0:01:36]} 30. Qf2 {[%clk 0:01:43]}  Qxf2+ {[%clk 0:01:35]} 31. Kxf2 {[%clk 0:01:44]}  f4 {[%clk 0:01:34]} 32. Rd1 {[%clk 0:01:41]}  Re2+ {[%clk 0:01:34]} 33. Kf1 {[%clk 0:01:42]}  Rxb2 {[%clk 0:01:32]} 0-1


[Site "https://www.chess.com"]

[Event "Titled Tuesday Blitz April 4 Early 2023"]
[White "crosky"]
[Black "Tokman, Ariel"]
[BlackFideId "117420"]
[WhiteElo "2364"]
[BlackElo "2263"]
[Result "1-0"]
[Round "10"]
[TimeControl "180+2"]
[Date "2023.04.04"]
[WhiteClock "0:01:31"]
[BlackClock "0:00:18"]

1. c4 {[%clk 0:03:00]}  c6 {[%clk 0:02:59]} 2. Nf3 {[%clk 0:03:00]}  d5 {[%clk 0:03:00]} 3. e3 {[%clk 0:03:01]}  Nf6 {[%clk 0:03:00]} 4. Nc3 {[%clk 0:03:01]}  Bf5 {[%clk 0:02:58]} 5. cxd5 {[%clk 0:03:00]}  cxd5 {[%clk 0:02:58]} 6. Qb3 {[%clk 0:03:00]}  Nc6 {[%clk 0:02:55]} 7. Qxb7 {[%clk 0:02:53]}  Bd7 {[%clk 0:02:55]} 8. Qb3 {[%clk 0:02:40]}  Rb8 {[%clk 0:02:54]} 9. Qc2 {[%clk 0:02:30]}  e5 {[%clk 0:02:52]} 10. d4 {[%clk 0:02:25]}  e4 {[%clk 0:02:34]} 11. Ne5 {[%clk 0:02:25]}  Bd6 {[%clk 0:02:34]} 12. Nxd7 {[%clk 0:02:19]}  Qxd7 {[%clk 0:02:31]} 13. Bb5 {[%clk 0:02:18]}  O-O {[%clk 0:02:25]} 14. O-O {[%clk 0:02:18]}  Rfc8 {[%clk 0:02:24]} 15. a3 {[%clk 0:02:14]}  Bxh2+ {[%clk 0:02:01]} 16. Kxh2 {[%clk 0:02:08]}  Ng4+ {[%clk 0:02:01]} 17. Kg1 {[%clk 0:01:59]}  Qd6 {[%clk 0:02:00]} 18. f4 {[%clk 0:01:41]}  Qh6 {[%clk 0:00:37]} 19. g3 {[%clk 0:01:41]}  Nxd4 {[%clk 0:00:34]} 20. exd4 {[%clk 0:01:40]}  Rxb5 {[%clk 0:00:34]} 21. Qe2 {[%clk 0:01:34]}  Rb6 {[%clk 0:00:18]} 22. Qxg4 {[%clk 0:01:32]}  Rg6 {[%clk 0:00:18]} 23. Qxc8# {[%clk 0:01:31]} 1-0


[Site "https://www.chess.com"]

[Event "Titled Tuesday Blitz April 4 Early 2023"]
[White "Gallegos Diaz, Carlos Alberto"]
[Black "Jovic, Stanoje"]
[WhiteFideId "3900886"]
[BlackFideId "905020"]
[WhiteElo "2362"]
[BlackElo "2236"]
[Result "1/2-1/2"]
[Round "10"]
[TimeControl "180+2"]
[Date "2023.04.04"]
[WhiteClock "0:00:10"]
[BlackClock "0:00:10"]

1. e4 {[%clk 0:03:00]}  c6 {[%clk 0:02:58]} 2. Nf3 {[%clk 0:03:00]}  d5 {[%clk 0:02:57]} 3. d3 {[%clk 0:03:01]}  dxe4 {[%clk 0:02:56]} 4. dxe4 {[%clk 0:03:02]}  Qxd1+ {[%clk 0:02:55]} 5. Kxd1 {[%clk 0:03:02]}  Bg4 {[%clk 0:02:55]} 6. Bd3 {[%clk 0:03:02]}  Nd7 {[%clk 0:02:53]} 7. Ke2 {[%clk 0:03:03]}  O-O-O {[%clk 0:02:50]} 8. Be3 {[%clk 0:03:03]}  b6 {[%clk 0:02:40]} 9. Nd2 {[%clk 0:03:03]}  e5 {[%clk 0:02:37]} 10. a4 {[%clk 0:03:03]}  Kb7 {[%clk 0:02:35]} 11. a5 {[%clk 0:03:02]}  b5 {[%clk 0:02:35]} 12. a6+ {[%clk 0:03:02]}  Kb8 {[%clk 0:02:34]} 13. h3 {[%clk 0:02:27]}  Bxf3+ {[%clk 0:02:34]} 14. Nxf3 {[%clk 0:02:27]}  f6 {[%clk 0:02:33]} 15. Rhd1 {[%clk 0:02:15]}  Bc5 {[%clk 0:02:29]} 16. Bxb5 {[%clk 0:02:03]}  Bxe3 {[%clk 0:02:21]} 17. Bxc6 {[%clk 0:02:03]}  Bxf2 {[%clk 0:02:06]} 18. Kxf2 {[%clk 0:01:44]}  Kc7 {[%clk 0:02:04]} 19. Bxd7 {[%clk 0:01:35]}  Rxd7 {[%clk 0:02:04]} 20. Rxd7+ {[%clk 0:01:28]}  Kxd7 {[%clk 0:02:04]} 21. Ra3 {[%clk 0:01:29]}  Ne7 {[%clk 0:02:02]} 22. Rb3 {[%clk 0:01:29]}  Rc8 {[%clk 0:02:02]} 23. Rb7+ {[%clk 0:01:28]}  Rc7 {[%clk 0:02:02]} 24. Rxc7+ {[%clk 0:00:56]}  Kxc7 {[%clk 0:02:02]} 25. Ke3 {[%clk 0:00:54]}  Kb6 {[%clk 0:02:02]} 26. c3 {[%clk 0:00:53]}  Kxa6 {[%clk 0:02:02]} 27. Kd3 {[%clk 0:00:54]}  Kb5 {[%clk 0:01:59]} 28. Nd2 {[%clk 0:00:52]}  a5 {[%clk 0:01:53]} 29. Nc4 {[%clk 0:00:52]}  Nc8 {[%clk 0:01:35]} 30. b3 {[%clk 0:00:47]}  h5 {[%clk 0:01:26]} 31. h4 {[%clk 0:00:45]}  g6 {[%clk 0:01:10]} 32. g3 {[%clk 0:00:45]}  a4 {[%clk 0:01:05]} 33. Na3+ {[%clk 0:00:44]}  Ka5 {[%clk 0:01:03]} 34. b4+ {[%clk 0:00:44]}  Kb6 {[%clk 0:01:02]} 35. c4 {[%clk 0:00:44]}  Ne7 {[%clk 0:00:59]} 36. c5+ {[%clk 0:00:44]}  Kc7 {[%clk 0:00:54]} 37. Kc4 {[%clk 0:00:45]}  Nc6 {[%clk 0:00:54]} 38. Kb5 {[%clk 0:00:38]}  Nd4+ {[%clk 0:00:47]} 39. Kxa4 {[%clk 0:00:37]}  f5 {[%clk 0:00:47]} 40. Nc4 {[%clk 0:00:26]}  fxe4 {[%clk 0:00:43]} 41. b5 {[%clk 0:00:23]}  Nf5 {[%clk 0:00:26]} 42. b6+ {[%clk 0:00:23]}  Kb8 {[%clk 0:00:18]} 43. c6 {[%clk 0:00:22]}  e3 {[%clk 0:00:16]} 44. Nb2 {[%clk 0:00:14]}  e2 {[%clk 0:00:14]} 45. c7+ {[%clk 0:00:15]}  Kb7 {[%clk 0:00:13]} 46. Nd3 {[%clk 0:00:15]}  Ne3 {[%clk 0:00:10]} 47. Kb5 {[%clk 0:00:10]}  Nd5 {[%clk 0:00:10]} 48. Nc5+ {[%clk 0:00:09]}  Kc8 {[%clk 0:00:09]} 49. Nd3 {[%clk 0:00:07]}  e4 {[%clk 0:00:07]} 50. Ne1 {[%clk 0:00:07]}  Kb7 {[%clk 0:00:07]} 51. Kc5 {[%clk 0:00:06]}  Nxb6 {[%clk 0:00:07]} 52. Kd4 {[%clk 0:00:06]}  Kxc7 {[%clk 0:00:07]} 53. Kxe4 {[%clk 0:00:06]}  Kd6 {[%clk 0:00:07]} 54. Kf4 {[%clk 0:00:06]}  Ke6 {[%clk 0:00:07]} 55. Kg5 {[%clk 0:00:07]}  Kf7 {[%clk 0:00:07]} 56. Kf4 {[%clk 0:00:06]}  Nd5+ {[%clk 0:00:07]} 57. Kf3 {[%clk 0:00:05]}  Kf6 {[%clk 0:00:06]} 58. Kxe2 {[%clk 0:00:05]}  Kf5 {[%clk 0:00:06]} 59. Kf3 {[%clk 0:00:06]}  Kf6 {[%clk 0:00:07]} 60. Ke2 {[%clk 0:00:06]}  Ne7 {[%clk 0:00:06]} 61. Kf3 {[%clk 0:00:07]}  Nf5 {[%clk 0:00:07]} 62. Ng2 {[%clk 0:00:06]}  Nd4+ {[%clk 0:00:07]} 63. Kf2 {[%clk 0:00:07]}  Ne6 {[%clk 0:00:08]} 64. Ne3 {[%clk 0:00:06]}  Nd4 {[%clk 0:00:08]} 65. Ng2 {[%clk 0:00:05]}  Nf5 {[%clk 0:00:08]} 66. Ne1 {[%clk 0:00:06]}  Ne7 {[%clk 0:00:08]} 67. Nf3 {[%clk 0:00:06]}  Nc6 {[%clk 0:00:08]} 68. Ng5 {[%clk 0:00:07]}  Ne5 {[%clk 0:00:08]} 69. Nh7+ {[%clk 0:00:07]}  Kf5 {[%clk 0:00:08]} 70. Ng5 {[%clk 0:00:08]}  Ng4+ {[%clk 0:00:09]} 71. Ke2 {[%clk 0:00:08]}  Nf6 {[%clk 0:00:09]} 72. Nf3 {[%clk 0:00:08]}  Kg4 {[%clk 0:00:09]} 73. Ne5+ {[%clk 0:00:08]}  Kxg3 {[%clk 0:00:09]} 74. Nxg6 {[%clk 0:00:09]}  Kg4 {[%clk 0:00:10]} 75. Kf2 {[%clk 0:00:08]}  Nd5 {[%clk 0:00:09]} 76. Kg2 {[%clk 0:00:09]}  Nc7 {[%clk 0:00:09]} 77. Ne5+ {[%clk 0:00:09]}  Kxh4 {[%clk 0:00:08]} 78. Nf3+ {[%clk 0:00:09]}  Kg4 {[%clk 0:00:08]} 79. Ne5+ {[%clk 0:00:10]}  Kf5 {[%clk 0:00:09]} 80. Nf3 {[%clk 0:00:10]}  h4 {[%clk 0:00:10]} 81. Nxh4+ {[%clk 0:00:10]} 1/2-1/2


[Site "https://www.chess.com"]

[Event "Titled Tuesday Blitz April 4 Early 2023"]
[White "Baches Garcia, Guillermo"]
[Black "Matveeva, Olga"]
[WhiteFideId "2209764"]
[BlackFideId "24107018"]
[WhiteElo "2447"]
[BlackElo "2056"]
[Result "1/2-1/2"]
[Round "10"]
[TimeControl "180+2"]
[Date "2023.04.04"]
[WhiteClock "0:01:12"]
[BlackClock "0:00:59"]

1. e4 {[%clk 0:03:00]}  e6 {[%clk 0:02:59]} 2. d4 {[%clk 0:03:01]}  d5 {[%clk 0:03:00]} 3. exd5 {[%clk 0:03:02]}  exd5 {[%clk 0:03:01]} 4. Nf3 {[%clk 0:03:02]}  Nf6 {[%clk 0:03:00]} 5. Bd3 {[%clk 0:03:02]}  c5 {[%clk 0:03:00]} 6. O-O {[%clk 0:03:02]}  c4 {[%clk 0:03:01]} 7. Re1+ {[%clk 0:03:02]}  Be7 {[%clk 0:03:01]} 8. Bf1 {[%clk 0:03:02]}  O-O {[%clk 0:03:01]} 9. Nc3 {[%clk 0:03:02]}  Nc6 {[%clk 0:03:00]} 10. Bg5 {[%clk 0:03:02]}  h6 {[%clk 0:02:55]} 11. Bh4 {[%clk 0:03:00]}  Bg4 {[%clk 0:02:49]} 12. Be2 {[%clk 0:02:43]}  Re8 {[%clk 0:02:44]} 13. Ne5 {[%clk 0:02:41]}  Bxe2 {[%clk 0:02:26]} 14. Rxe2 {[%clk 0:02:36]}  Ne4 {[%clk 0:02:05]} 15. Bxe7 {[%clk 0:02:18]}  Nxc3 {[%clk 0:02:00]} 16. Bxd8 {[%clk 0:01:47]}  Nxd1 {[%clk 0:01:59]} 17. Rxd1 {[%clk 0:01:47]}  Raxd8 {[%clk 0:01:53]} 18. Nxc6 {[%clk 0:01:44]}  bxc6 {[%clk 0:01:52]} 19. Rde1 {[%clk 0:01:41]}  Rxe2 {[%clk 0:01:41]} 20. Rxe2 {[%clk 0:01:41]}  Kf8 {[%clk 0:01:41]} 21. Kf1 {[%clk 0:01:37]}  Rb8 {[%clk 0:01:41]} 22. b3 {[%clk 0:01:36]}  cxb3 {[%clk 0:01:32]} 23. axb3 {[%clk 0:01:29]}  Rb4 {[%clk 0:01:30]} 24. Rd2 {[%clk 0:01:29]}  a5 {[%clk 0:01:29]} 25. Ke2 {[%clk 0:01:26]}  Ke7 {[%clk 0:01:24]} 26. Kd3 {[%clk 0:01:24]}  Kd6 {[%clk 0:01:20]} 27. Re2 {[%clk 0:01:21]}  a4 {[%clk 0:01:05]} 28. bxa4 {[%clk 0:01:20]}  Rxa4 {[%clk 0:01:05]} 29. h4 {[%clk 0:01:19]}  h5 {[%clk 0:01:04]} 30. g3 {[%clk 0:01:18]}  g6 {[%clk 0:01:03]} 31. c3 {[%clk 0:01:13]}  Ra1 {[%clk 0:01:02]} 32. Rb2 {[%clk 0:01:11]}  Rd1+ {[%clk 0:01:00]} 33. Ke3 {[%clk 0:01:11]}  Re1+ {[%clk 0:01:00]} 34. Kd3 {[%clk 0:01:11]}  Rd1+ {[%clk 0:00:59]} 35. Ke3 {[%clk 0:01:11]}  Re1+ {[%clk 0:00:59]} 36. Kd3 {[%clk 0:01:12]}  Rd1+ {[%clk 0:00:59]} 1/2-1/2


[Site "https://www.chess.com"]

[Event "Titled Tuesday Blitz April 4 Early 2023"]
[White "Avazkhonov, Alikhon"]
[Black "Rosenberg, Evan S"]
[WhiteFideId "14208504"]
[BlackFideId "2019299"]
[WhiteElo "1739"]
[BlackElo "2223"]
[Result "1-0"]
[Round "10"]
[TimeControl "180+2"]
[Date "2023.04.04"]
[WhiteClock "0:00:54"]
[BlackClock "0:00:01"]

1. d4 {[%clk 0:03:00]}  d5 {[%clk 0:02:56]} 2. c4 {[%clk 0:03:01]}  e6 {[%clk 0:02:49]} 3. Nc3 {[%clk 0:03:01]}  c5 {[%clk 0:02:49]} 4. cxd5 {[%clk 0:02:57]}  cxd4 {[%clk 0:02:49]} 5. Qa4+ {[%clk 0:02:57]}  Bd7 {[%clk 0:02:49]} 6. Qxd4 {[%clk 0:02:57]}  exd5 {[%clk 0:02:49]} 7. Qxd5 {[%clk 0:02:55]}  Nf6 {[%clk 0:02:49]} 8. Qb3 {[%clk 0:02:55]}  Na6 {[%clk 0:02:49]} 9. Nf3 {[%clk 0:02:55]}  Nc5 {[%clk 0:02:49]} 10. Qd1 {[%clk 0:02:55]}  Nce4 {[%clk 0:02:28]} 11. g3 {[%clk 0:02:51]}  Bb4 {[%clk 0:02:22]} 12. Bd2 {[%clk 0:02:44]}  Bxc3 {[%clk 0:02:03]} 13. Bxc3 {[%clk 0:02:42]}  O-O {[%clk 0:01:17]} 14. Bg2 {[%clk 0:02:32]}  Nxc3 {[%clk 0:01:10]} 15. bxc3 {[%clk 0:02:33]}  Bc6 {[%clk 0:00:47]} 16. O-O {[%clk 0:02:31]}  Re8 {[%clk 0:00:44]} 17. e3 {[%clk 0:02:22]}  Ne4 {[%clk 0:00:37]} 18. Qd4 {[%clk 0:02:11]}  Rc8 {[%clk 0:00:31]} 19. Rfd1 {[%clk 0:02:05]}  Qa5 {[%clk 0:00:30]} 20. Qb4 {[%clk 0:02:02]}  Qf5 {[%clk 0:00:20]} 21. Rac1 {[%clk 0:01:49]}  a5 {[%clk 0:00:19]} 22. Qb2 {[%clk 0:01:45]}  h6 {[%clk 0:00:17]} 23. Nd4 {[%clk 0:01:45]}  Qf6 {[%clk 0:00:14]} 24. Nxc6 {[%clk 0:01:45]}  Rxc6 {[%clk 0:00:13]} 25. Bxe4 {[%clk 0:01:37]}  Rxe4 {[%clk 0:00:12]} 26. Qxb7 {[%clk 0:01:38]}  Re8 {[%clk 0:00:10]} 27. Rd7 {[%clk 0:01:36]}  Rxc3 {[%clk 0:00:09]} 28. Rxc3 {[%clk 0:01:37]}  Qxc3 {[%clk 0:00:09]} 29. Rxf7 {[%clk 0:01:31]}  a4 {[%clk 0:00:07]} 30. Qd7 {[%clk 0:01:09]}  Rb8 {[%clk 0:00:03]} 31. Re7 {[%clk 0:01:00]}  Qa1+ {[%clk 0:00:02]} 32. Kg2 {[%clk 0:01:00]}  Qf6 {[%clk 0:00:02]} 33. Re8+ {[%clk 0:00:58]}  Rxe8 {[%clk 0:00:02]} 34. Qxe8+ {[%clk 0:00:59]}  Kh7 {[%clk 0:00:03]} 35. Qxa4 {[%clk 0:00:57]}  Qb2 {[%clk 0:00:01]} 36. Qe4+ {[%clk 0:00:56]}  Kh8 {[%clk 0:00:01]} 37. a4 {[%clk 0:00:54]} 1-0


[Site "https://www.chess.com"]

[Event "Titled Tuesday Blitz April 4 Early 2023"]
[White "Yonal, Timur"]
[Black "Melikhov, Evgeny V."]
[WhiteFideId "44115725"]
[BlackFideId "4122046"]
[WhiteElo "1966"]
[BlackElo "2158"]
[Result "1/2-1/2"]
[Round "10"]
[TimeControl "180+2"]
[Date "2023.04.04"]
[WhiteClock "0:00:23"]
[BlackClock "0:00:07"]

1. e4 {[%clk 0:02:57]}  c5 {[%clk 0:02:59]} 2. Nf3 {[%clk 0:02:53]}  d6 {[%clk 0:02:59]} 3. Bb5+ {[%clk 0:02:48]}  Nd7 {[%clk 0:02:58]} 4. O-O {[%clk 0:02:48]}  a6 {[%clk 0:02:58]} 5. Bd3 {[%clk 0:02:47]}  e6 {[%clk 0:02:57]} 6. c3 {[%clk 0:02:47]}  Ngf6 {[%clk 0:02:56]} 7. Re1 {[%clk 0:02:47]}  Be7 {[%clk 0:02:56]} 8. Bc2 {[%clk 0:02:47]}  O-O {[%clk 0:02:56]} 9. d4 {[%clk 0:02:46]}  Qc7 {[%clk 0:02:55]} 10. Qe2 {[%clk 0:02:35]}  Re8 {[%clk 0:02:26]} 11. e5 {[%clk 0:02:35]}  Nd5 {[%clk 0:02:21]} 12. a3 {[%clk 0:02:27]}  Nf8 {[%clk 0:02:13]} 13. c4 {[%clk 0:02:26]}  Nb6 {[%clk 0:02:06]} 14. dxc5 {[%clk 0:02:11]}  Qxc5 {[%clk 0:01:54]} 15. Be3 {[%clk 0:02:09]}  Qc7 {[%clk 0:01:51]} 16. exd6 {[%clk 0:02:06]}  Bxd6 {[%clk 0:01:51]} 17. b4 {[%clk 0:02:02]}  Nxc4 {[%clk 0:01:43]} 18. Bb3 {[%clk 0:02:01]}  Nxe3 {[%clk 0:01:41]} 19. Qxe3 {[%clk 0:01:59]}  b5 {[%clk 0:01:33]} 20. Nbd2 {[%clk 0:01:57]}  Bb7 {[%clk 0:01:32]} 21. Rac1 {[%clk 0:01:56]}  Qe7 {[%clk 0:01:29]} 22. Ba2 {[%clk 0:01:55]}  Rac8 {[%clk 0:01:25]} 23. Bb1 {[%clk 0:01:54]}  Rxc1 {[%clk 0:01:23]} 24. Rxc1 {[%clk 0:01:54]}  Rc8 {[%clk 0:01:16]} 25. Rxc8 {[%clk 0:01:53]}  Bxc8 {[%clk 0:01:16]} 26. Ne4 {[%clk 0:01:54]}  Bb7 {[%clk 0:01:03]} 27. Qd3 {[%clk 0:01:39]}  Bxe4 {[%clk 0:00:55]} 28. Qxe4 {[%clk 0:01:38]}  Qc7 {[%clk 0:00:48]} 29. g3 {[%clk 0:01:34]}  a5 {[%clk 0:00:44]} 30. bxa5 {[%clk 0:01:29]}  Qxa5 {[%clk 0:00:43]} 31. Ng5 {[%clk 0:01:29]}  g6 {[%clk 0:00:27]} 32. Qf3 {[%clk 0:01:25]}  f6 {[%clk 0:00:20]} 33. Qxf6 {[%clk 0:01:22]}  Qa7 {[%clk 0:00:13]} 34. Ba2 {[%clk 0:01:04]}  Qe7 {[%clk 0:00:10]} 35. Qxe7 {[%clk 0:00:37]}  Bxe7 {[%clk 0:00:09]} 36. Nxe6 {[%clk 0:00:37]}  Nxe6 {[%clk 0:00:10]} 37. Bxe6+ {[%clk 0:00:38]}  Kg7 {[%clk 0:00:10]} 38. Bd7 {[%clk 0:00:38]}  Bxa3 {[%clk 0:00:10]} 39. Bxb5 {[%clk 0:00:39]}  Bc5 {[%clk 0:00:10]} 40. Kg2 {[%clk 0:00:38]}  g5 {[%clk 0:00:11]} 41. f3 {[%clk 0:00:37]}  h6 {[%clk 0:00:11]} 42. Kh3 {[%clk 0:00:36]}  Kf6 {[%clk 0:00:11]} 43. Kg4 {[%clk 0:00:36]}  Kg7 {[%clk 0:00:09]} 44. h3 {[%clk 0:00:32]}  Bd6 {[%clk 0:00:09]} 45. f4 {[%clk 0:00:26]}  gxf4 {[%clk 0:00:08]} 46. gxf4 {[%clk 0:00:27]}  Kf6 {[%clk 0:00:08]} 47. Bc4 {[%clk 0:00:21]}  h5+ {[%clk 0:00:07]} 48. Kxh5 {[%clk 0:00:20]}  Bxf4 {[%clk 0:00:07]} 49. Kg4 {[%clk 0:00:20]}  Kg7 {[%clk 0:00:05]} 50. h4 {[%clk 0:00:20]}  Kh8 {[%clk 0:00:05]} 51. Kxf4 {[%clk 0:00:20]}  Kg7 {[%clk 0:00:05]} 52. Kg5 {[%clk 0:00:21]}  Kh8 {[%clk 0:00:05]} 53. Bd3 {[%clk 0:00:21]}  Kg7 {[%clk 0:00:05]} 54. Bg6 {[%clk 0:00:21]}  Kh8 {[%clk 0:00:06]} 55. h5 {[%clk 0:00:22]}  Kg7 {[%clk 0:00:06]} 56. Bf5 {[%clk 0:00:22]}  Kh8 {[%clk 0:00:06]} 57. Kh6 {[%clk 0:00:23]}  Kg8 {[%clk 0:00:06]} 58. Bg6 {[%clk 0:00:23]}  Kh8 {[%clk 0:00:06]} 59. Bf5 {[%clk 0:00:23]}  Kg8 {[%clk 0:00:07]} 60. Be6+ {[%clk 0:00:23]}  Kh8 {[%clk 0:00:07]} 61. Bf5 {[%clk 0:00:23]} 1/2-1/2


[Site "https://www.chess.com"]

[Event "Titled Tuesday Blitz April 4 Early 2023"]
[White "morozcoma"]
[Black "Iskusnyh, Sergei"]
[BlackFideId "4120027"]
[WhiteElo "2287"]
[BlackElo "2492"]
[Result "0-1"]
[Round "10"]
[TimeControl "180+2"]
[Date "2023.04.04"]
[WhiteClock "0:00:24"]
[BlackClock "0:00:12"]

1. e4 {[%clk 0:02:59]}  e6 {[%clk 0:02:59]} 2. d4 {[%clk 0:02:58]}  d5 {[%clk 0:02:59]} 3. Nc3 {[%clk 0:02:59]}  Nf6 {[%clk 0:02:59]} 4. e5 {[%clk 0:02:59]}  Nfd7 {[%clk 0:02:59]} 5. Nf3 {[%clk 0:02:59]}  c5 {[%clk 0:02:59]} 6. Bg5 {[%clk 0:03:00]}  Qa5 {[%clk 0:02:51]} 7. dxc5 {[%clk 0:02:55]}  Nc6 {[%clk 0:02:49]} 8. Qd2 {[%clk 0:02:52]}  Bxc5 {[%clk 0:02:28]} 9. O-O-O {[%clk 0:02:51]}  Bb4 {[%clk 0:02:26]} 10. Kb1 {[%clk 0:02:14]}  Bxc3 {[%clk 0:02:24]} 11. Qxc3 {[%clk 0:02:15]}  Qxc3 {[%clk 0:02:23]} 12. bxc3 {[%clk 0:02:16]}  Ndxe5 {[%clk 0:02:22]} 13. Nxe5 {[%clk 0:02:16]}  Nxe5 {[%clk 0:02:22]} 14. f4 {[%clk 0:02:05]}  Ng4 {[%clk 0:02:08]} 15. Bb5+ {[%clk 0:01:42]}  Bd7 {[%clk 0:02:06]} 16. Bxd7+ {[%clk 0:01:42]}  Kxd7 {[%clk 0:02:07]} 17. Rhe1 {[%clk 0:01:43]}  Rhc8 {[%clk 0:01:59]} 18. h3 {[%clk 0:01:41]}  Nf6 {[%clk 0:01:51]} 19. Bxf6 {[%clk 0:01:41]}  gxf6 {[%clk 0:01:50]} 20. Rd3 {[%clk 0:01:40]}  Rc4 {[%clk 0:01:47]} 21. f5 {[%clk 0:01:38]}  h5 {[%clk 0:01:43]} 22. Rf3 {[%clk 0:01:33]}  Ke7 {[%clk 0:01:33]} 23. fxe6 {[%clk 0:01:26]}  fxe6 {[%clk 0:01:32]} 24. Rf5 {[%clk 0:01:26]}  Rg8 {[%clk 0:01:04]} 25. Rxh5 {[%clk 0:01:19]}  Rxg2 {[%clk 0:01:04]} 26. Rh7+ {[%clk 0:01:20]}  Kd6 {[%clk 0:01:04]} 27. Rxb7 {[%clk 0:01:20]}  Rxc3 {[%clk 0:01:04]} 28. Rxa7 {[%clk 0:01:20]}  Rgxc2 {[%clk 0:01:02]} 29. Ra6+ {[%clk 0:01:14]}  Rc6 {[%clk 0:01:01]} 30. Ra3 {[%clk 0:01:12]}  Rh2 {[%clk 0:00:57]} 31. Rf1 {[%clk 0:01:10]}  f5 {[%clk 0:00:55]} 32. Re3 {[%clk 0:01:09]}  d4 {[%clk 0:00:51]} 33. Rd3 {[%clk 0:01:08]}  Kd5 {[%clk 0:00:50]} 34. Rf4 {[%clk 0:01:07]}  Rc4 {[%clk 0:00:44]} 35. a3 {[%clk 0:00:51]}  Ke5 {[%clk 0:00:40]} 36. Rf1 {[%clk 0:00:45]}  Ke4 {[%clk 0:00:38]} 37. Rdf3 {[%clk 0:00:43]}  Rc3 {[%clk 0:00:19]} 38. Rxc3 {[%clk 0:00:30]}  dxc3 {[%clk 0:00:19]} 39. Re1+ {[%clk 0:00:30]}  Kd3 {[%clk 0:00:19]} 40. a4 {[%clk 0:00:29]}  Rb2+ {[%clk 0:00:16]} 41. Kc1 {[%clk 0:00:29]}  Ra2 {[%clk 0:00:16]} 42. Kb1 {[%clk 0:00:29]}  Rxa4 {[%clk 0:00:16]} 43. Rxe6 {[%clk 0:00:29]}  Rf4 {[%clk 0:00:13]} 44. Re1 {[%clk 0:00:27]}  Kd2 {[%clk 0:00:13]} 45. Rc1 {[%clk 0:00:24]}  Rb4+ {[%clk 0:00:12]} 46. Ka2 {[%clk 0:00:24]}  Kxc1 {[%clk 0:00:12]} 0-1


[Site "https://www.chess.com"]